fUST/lending_fUST_20250704
["ID","MTS","AMOUNT","RATE_DAILY","PERIOD"]
[369602708,1751640640430,-460.0,0.00016438,2]
[369602710,1751640640440,-460.0,0.00016438,2]
[369602712,1751640640450,-460.0,0.00016438,2]
[369602714,1751640640462,-2462.41,0.00016438,2]
[369602716,1751640640471,-460.0,0.00016438,2]
[369602718,1751640640481,-460.0,0.00016438,2]
[369602720,1751640640491,-460.0,0.00016438,2]
[369602722,1751640640500,-460.0,0.00016438,2]
[369602724,1751640640510,-1328.47,0.00016438,2]
[369602726,1751640640520,-460.0,0.00016438,2]
[369602728,1751640640530,-460.0,0.00016438,2]
[369602730,1751640640539,-460.0,0.00016438,2]
[369602732,1751640640549,-460.0,0.00016438,2]
[369602734,1751640640560,-2350.03,0.00016438,2]
[369602736,1751640640571,-460.0,0.00016438,2]
[369602738,1751640640581,-460.0,0.00016438,2]
[369602740,1751640640591,-460.0,0.00016438,2]
[369602742,1751640640600,-460.0,0.00016438,2]
[369602744,1751640640610,-460.0,0.00016438,2]
[369602746,1751640640620,-460.0,0.00016438,2]
[369602748,1751640640629,-460.0,0.00016438,2]
[369602750,1751640640639,-460.0,0.00016438,2]
[369602752,1751640640649,-1095.01,0.00016438,2]
[369602754,1751640640660,-460.0,0.00016438,2]
[369602756,1751640640670,-460.0,0.00016438,2]
[369602758,1751640640680,-460.0,0.00016438,2]
[369602760,1751640640690,-460.0,0.00016438,2]
[369602762,1751640640699,-460.0,0.00016438,2]
[369602764,1751640640709,-240.3396799,0.00016438,2]
[369602766,1751640640718,-992.0,0.00016438,2]
[369602768,1751640640729,-460.0,0.00016438,2]
[369602769,1751640640739,-460.0,0.00016438,2]
[369602771,1751640640749,-460.0,0.00016438,2]
[369602773,1751640640758,-460.0,0.00016438,2]
[369602775,1751640640768,-460.0,0.00016438,2]
[369602777,1751640640779,-460.0,0.00016438,2]
[369602779,1751640640788,-460.0,0.00016438,2]
[369602781,1751640640797,-460.0,0.00016438,2]
[369602783,1751640640807,-460.0,0.00016438,2]
[369602785,1751640640816,-1140.44,0.00016438,2]
[369602787,1751640640826,-388.46359057,0.00016438,2]
[369602789,1751640640835,-460.0,0.00016438,2]
[369602791,1751640640844,-460.0,0.00016438,2]
[369602793,1751640640853,-460.0,0.00016438,2]
[369602795,1751640640862,-253.86070907,0.00016438,2]
[369602797,1751640640872,-460.0,0.00016438,2]
[369602799,1751640640881,-460.0,0.00016438,2]
[369602801,1751640640891,-460.0,0.00016438,2]
[369602803,1751640640900,-941.59,0.00016438,2]
[369602805,1751640640909,-460.0,0.00016438,2]
[369602807,1751640640919,-460.0,0.00016438,2]
[369602809,1751640640928,-1431.76,0.00016438,2]
[369602811,1751640640937,-460.0,0.00016438,2]
[369602813,1751640640947,-460.0,0.00016438,2]
[369602815,1751640640956,-460.0,0.00016438,2]
[369602817,1751640640966,-460.0,0.00016438,2]
[369602819,1751640640975,-2898.45,0.00016438,2]
[369602821,1751640640984,-460.0,0.00016438,2]
[369602823,1751640640994,-1384.54,0.00016438,2]
[369602825,1751640641003,-1384.54,0.00016438,2]
[369602827,1751640641013,-1384.54,0.00016438,2]
[369602828,1751640641022,-1384.54,0.00016438,2]
[369602829,1751640641031,-1384.54,0.00016438,2]
[369602830,1751640641040,-460.0,0.00016438,2]
[369602831,1751640641050,-1384.54,0.00016438,2]
[369602832,1751640641059,-460.0,0.00016438,2]
[369602833,1751640641067,-460.0,0.00016438,2]
[369602834,1751640641077,-460.0,0.00016438,2]
[369602835,1751640641086,-460.0,0.00016438,2]
[369602836,1751640641095,-274.12620256,0.00016438,2]
[369602837,1751640641105,-460.0,0.00016438,2]
[369602838,1751640641116,-460.0,0.00016438,2]
[369602840,1751640641125,-460.0,0.00016438,2]
[369602842,1751640641134,-460.0,0.00016438,2]
[369602844,1751640641144,-460.0,0.00016438,2]
[369602846,1751640641153,-460.0,0.00016438,2]
[369602848,1751640641162,-460.0,0.00016438,2]
[369602850,1751640641172,-460.0,0.00016438,2]
[369602852,1751640641182,-460.0,0.00016438,2]
[369602854,1751640641191,-460.0,0.00016438,2]
[369602856,1751640641200,-3672.38,0.00016438,2]
[369602858,1751640641209,-460.0,0.00016438,2]
[369602860,1751640641218,-460.0,0.00016438,2]
[369602862,1751640641227,-460.0,0.00016438,2]
[369602864,1751640641237,-460.0,0.00016438,2]
[369602866,1751640641246,-460.0,0.00016438,2]
[369602868,1751640641256,-460.0,0.00016438,2]
[369602870,1751640641266,-460.0,0.00016438,2]
[369602872,1751640641275,-474.90166585,0.00016438,2]
[369602874,1751640641285,-460.0,0.00016438,2]
[369602876,1751640641294,-460.0,0.00016438,2]
[369602878,1751640641304,-764.38,0.00016438,2]
[369602880,1751640641313,-460.0,0.00016438,2]
[369602882,1751640641323,-460.0,0.00016438,2]
[369602884,1751640641332,-460.0,0.00016438,2]
[369602886,1751640641341,-460.0,0.00016438,2]
[369602888,1751640641351,-1198.98,0.00016438,2]
[369602890,1751640641360,-460.0,0.00016438,2]
[369602892,1751640641369,-460.0,0.00016438,2]
[369602894,1751640641378,-460.0,0.00016438,2]
[369602896,1751640641388,-1384.54,0.00016525,2]
[369602898,1751640641397,-3255.2,0.00016526,2]
[369602900,1751640641407,-1384.54,0.00016526,2]
[369602902,1751640641418,-207.4,0.00016526,2]
[369602904,1751640641427,-5000.0,0.00016526,2]
[369602906,1751640641437,-25000.0,0.00016526,2]
[369602908,1751640641446,-1042.08295042,0.00016544,2]
[369602910,1751640641456,-3255.2,0.00016611,2]
[369602912,1751640641465,-1384.54,0.00016611,2]
[369602914,1751640641475,-13235.53122379,0.00016612,2]
[369602916,1751640641485,-3255.2,0.0001671,2]
[369602918,1751640641495,-1384.54,0.0001671,2]
[369602920,1751640641504,-160.0,0.00016711,2]
[369602922,1751640641513,-160.0,0.00016711,2]
[369602924,1751640641523,-847.91215827,0.00016711,2]
[369602926,1751640641532,-215.11129906,0.00016711,2]
[369602928,1751640641541,-160.0,0.00016711,2]
[369602930,1751640641551,-230.40116161,0.00016711,2]
[369602932,1751640641560,-213.97741257,0.00016711,2]
[369602934,1751640641570,-837.48520791,0.00016711,2]
[369602936,1751640641579,-12578.03337979,0.00016711,2]
[369602938,1751640641589,-3255.2,0.00016711,2]
[369602940,1751640641598,-3255.2,0.00016711,2]
[369602942,1751640641607,-1384.54,0.00016711,2]
[369602944,1751640641617,-1384.54,0.00016711,2]
[369602946,1751640641627,-1384.54,0.00016711,2]
[369602948,1751640641636,-460.0,0.00016712,2]
[369602950,1751640641645,-500.0,0.00016712,2]
[369602952,1751640641655,-460.0,0.00016712,2]
[369602954,1751640641664,-460.0,0.00016712,2]
[369602955,1751640641673,-460.0,0.00016712,2]
[369602957,1751640641682,-257.61468776,0.00016712,2]
[369602959,1751640641691,-460.0,0.00016712,2]
[369602961,1751640641700,-460.0,0.00016712,2]
[369602963,1751640641709,-460.0,0.00016712,2]
[369602965,1751640641719,-460.0,0.00016712,2]
[369602980,1751640641853,-460.0,0.00016712,2]
[369602982,1751640641864,-461.23,0.00016712,2]
[369602984,1751640641874,-460.0,0.00016712,2]
[369602986,1751640641883,-191.092026,0.00016712,2]
[369602988,1751640641892,-191.092026,0.00016712,2]
[369602990,1751640641902,-460.0,0.00016712,2]
[369602992,1751640641912,-151.0,0.00016712,2]
[369602994,1751640641922,-407.76415195,0.00016712,2]
[369602996,1751640641932,-172.4531322,0.00016712,2]
[369602998,1751640641941,-460.0,0.00016712,2]
[369603000,1751640641950,-847.73,0.00016712,2]
[369603002,1751640641959,-460.0,0.00016712,2]
[369603004,1751640641968,-151.0,0.00016712,2]
[369603006,1751640641978,-151.0,0.00016712,2]
[369603008,1751640641987,-460.0,0.00016712,2]
[369603010,1751640641996,-517.88,0.00016712,2]
[369603012,1751640642005,-460.0,0.00016712,2]
[369603014,1751640642014,-151.0,0.00016712,2]
[369603016,1751640642024,-268.410571,0.00016712,2]
[369603018,1751640642033,-268.410571,0.00016712,2]
[369603020,1751640642043,-151.0,0.00016712,2]
[369603022,1751640642054,-460.0,0.00016712,2]
[369603024,1751640642064,-460.0,0.00016712,2]
[369603026,1751640642074,-386.258405,0.00016712,2]
[369603028,1751640642083,-386.258405,0.00016712,2]
[369603030,1751640642092,-460.0,0.00016712,2]
[369603032,1751640642101,-460.0,0.00016712,2]
[369603034,1751640642115,-826.84,0.00016712,2]
[369603036,1751640642125,-1197.41,0.00016712,2]
[369603038,1751640642134,-460.0,0.00016712,2]
[369603040,1751640642144,-460.0,0.00016712,2]
[369603042,1751640642155,-1910.38,0.00016712,2]
[369603044,1751640642166,-151.0,0.00016712,2]
[369603046,1751640642176,-2069.31,0.00016712,2]
[369603048,1751640642186,-460.0,0.00016712,2]
[369603050,1751640642195,-504.29,0.00016712,2]
[369603052,1751640642205,-460.0,0.00016712,2]
[369603054,1751640642214,-151.0,0.00016712,2]
[369603056,1751640642224,-460.0,0.00016712,2]
[369603058,1751640642233,-2336.09,0.00016712,2]
[369603060,1751640642243,-460.0,0.00016712,2]
[369603062,1751640642252,-151.0,0.00016712,2]
[369603064,1751640642262,-528.35,0.00016712,2]
[369603066,1751640642271,-460.0,0.00016712,2]
[369603068,1751640642281,-151.0,0.00016712,2]
[369603070,1751640642291,-460.0,0.00016712,2]
[369603072,1751640642300,-152.097823,0.00016712,2]
[369603074,1751640642310,-460.0,0.00016712,2]
[369603076,1751640642319,-460.0,0.00016712,2]
[369603078,1751640642329,-3186.0,0.00016712,2]
[369603080,1751640642338,-1109.69,0.00016712,2]
[369603082,1751640642348,-486.66,0.00016712,2]
[369603084,1751640642358,-460.0,0.00016712,2]
[369603086,1751640642367,-460.0,0.00016712,2]
[369603088,1751640642376,-460.0,0.00016712,2]
[369603090,1751640642385,-460.0,0.00016712,2]
[369603092,1751640642395,-695.289758,0.00016712,2]
[369603094,1751640642404,-460.0,0.00016712,2]
[369603096,1751640642413,-158.624988,0.00016712,2]
[369603098,1751640642423,-460.0,0.00016712,2]
[369603100,1751640642432,-851.9,0.00016712,2]
[369603102,1751640642443,-1732.35,0.00016712,2]
[369603104,1751640642453,-695.289758,0.00016712,2]
[369603106,1751640642463,-460.0,0.00016712,2]
[369603108,1751640642472,-151.0,0.00016712,2]
[369603110,1751640642481,-2462.41,0.00016712,2]
[369603112,1751640642491,-267.94857808,0.00016712,2]
[369603114,1751640642501,-1328.47,0.00016712,2]
[369603116,1751640642510,-460.0,0.00016712,2]
[369603117,1751640642520,-460.0,0.00016712,2]
[369603119,1751640642530,-460.0,0.00016712,2]
[369603121,1751640642539,-460.0,0.00016712,2]
[369603123,1751640642551,-2350.03,0.00016712,2]
[369603125,1751640642560,-167.8195284,0.00016712,2]
[369603127,1751640642571,-151.0,0.00016712,2]
[369603129,1751640642581,-460.0,0.00016712,2]
[369603131,1751640642591,-460.0,0.00016712,2]
[369603133,1751640642600,-460.0,0.00016712,2]
[369603135,1751640642614,-460.0,0.00016712,2]
[369603137,1751640642624,-1095.01,0.00016712,2]
[369603139,1751640642634,-460.0,0.00016712,2]
[369603141,1751640642643,-460.0,0.00016712,2]
[369603143,1751640642652,-992.0,0.00016712,2]
[369603145,1751640642662,-460.0,0.00016712,2]
[369603147,1751640642672,-1140.44,0.00016712,2]
[369603149,1751640642681,-460.0,0.00016712,2]
[369603151,1751640642691,-941.59,0.00016712,2]
[369603153,1751640642700,-460.0,0.00016712,2]
[369603155,1751640642710,-1431.76,0.00016712,2]
[369603157,1751640642719,-2898.45,0.00016712,2]
[369603159,1751640642729,-415.743074,0.00016712,2]
[369603161,1751640642739,-460.0,0.00016712,2]
[369603163,1751640642750,-460.0,0.00016712,2]
[369603165,1751640642759,-460.0,0.00016712,2]
[369603167,1751640642768,-460.0,0.00016712,2]
[369603169,1751640642778,-460.0,0.00016712,2]
[369603171,1751640642788,-460.0,0.00016712,2]
[369603173,1751640642797,-460.0,0.00016712,2]
[369603175,1751640642808,-460.0,0.00016712,2]
[369603177,1751640642817,-460.0,0.00016712,2]
[369603179,1751640642826,-460.0,0.00016712,2]
[369603181,1751640642835,-460.0,0.00016712,2]
[369603183,1751640642845,-460.0,0.00016712,2]
[369603185,1751640642855,-3672.38,0.00016712,2]
[369603187,1751640642864,-460.0,0.00016712,2]
[369603189,1751640642873,-460.0,0.00016712,2]
[369603191,1751640642883,-460.0,0.00016712,2]
[369603193,1751640642892,-460.0,0.00016712,2]
[369603195,1751640642902,-460.0,0.00016712,2]
[369603197,1751640642911,-764.38,0.00016712,2]
[369603199,1751640642922,-460.0,0.00016712,2]
[369603201,1751640642931,-1198.98,0.00016712,2]
[369603203,1751640642941,-460.0,0.00016712,2]
[369603205,1751640642950,-151.0,0.00016712,2]
[369603207,1751640642960,-460.0,0.00016712,2]
[369603209,1751640642969,-1042.08295042,0.00016749,2]
[369603211,1751640642978,-420.0,0.00016875,2]
[369603214,1751640642988,-500.0,0.00016877,2]
[369603216,1751640642997,-1384.54,0.00016899,2]
[369603218,1751640643006,-7807.73192757,0.000169,2]
[369603219,1751640643015,-500.0,0.00016904,2]
[369603222,1751640643025,-500.0,0.00016932,2]
[369603224,1751640643035,-1042.08295042,0.00016955,2]
[369603226,1751640643044,-1384.54,0.00016984,2]
[369603228,1751640643054,-3255.2,0.00016985,2]
[369603230,1751640643064,-3255.2,0.00016985,2]
[369603231,1751640643073,-3255.2,0.00016985,2]
[369603233,1751640643083,-1384.54,0.00016985,2]
[369603235,1751640643092,-1384.54,0.00016985,2]
[369603237,1751640643103,-186.11495715,0.00016986,2]
[369603240,1751640643116,-504.88004211,0.00016986,2]
[369603241,1751640643125,-460.0,0.00016986,2]
[369603243,1751640643135,-460.0,0.00016986,2]
[369603247,1751640643146,-460.0,0.00016986,2]
[369603249,1751640643156,-460.0,0.00016986,2]
[369603252,1751640643166,-460.0,0.00016986,2]
[369603255,1751640643175,-460.0,0.00016986,2]
[369603258,1751640643186,-486.43844272,0.00016986,2]
[369603261,1751640643196,-461.23,0.00016986,2]
[369603262,1751640643206,-460.0,0.00016986,2]
[369603265,1751640643215,-191.092026,0.00016986,2]
[369603267,1751640643224,-151.0,0.00016986,2]
[369603270,1751640643233,-191.092026,0.00016986,2]
[369603273,1751640643243,-161.296516,0.00016986,2]
[369603276,1751640643252,-151.0,0.00016986,2]
[369603280,1751640643262,-460.0,0.00016986,2]
[369603283,1751640643271,-151.0,0.00016986,2]
[369603285,1751640643281,-151.0,0.00016986,2]
[369603288,1751640643291,-847.73,0.00016986,2]
[369603291,1751640643300,-151.0,0.00016986,2]
[369603294,1751640643309,-151.0,0.00016986,2]
[369603296,1751640643319,-460.0,0.00016986,2]
[369603300,1751640643328,-517.88,0.00016986,2]
[369603303,1751640643338,-460.0,0.00016986,2]
[369603305,1751640643347,-151.0,0.00016986,2]
[369603308,1751640643357,-268.410571,0.00016986,2]
[369603311,1751640643367,-268.410571,0.00016986,2]
[369603313,1751640643376,-151.0,0.00016986,2]
[369603316,1751640643386,-460.0,0.00016986,2]
[369603319,1751640643395,-460.0,0.00016986,2]
[369603321,1751640643404,-386.258405,0.00016986,2]
[369603324,1751640643414,-386.258405,0.00016986,2]
[369603327,1751640643425,-460.0,0.00016986,2]
[369603329,1751640643435,-460.0,0.00016986,2]
[369603331,1751640643444,-826.84,0.00016986,2]
[369603333,1751640643454,-1197.41,0.00016986,2]
[369603335,1751640643464,-460.0,0.00016986,2]
[369603337,1751640643474,-1910.38,0.00016986,2]
[369603339,1751640643484,-151.0,0.00016986,2]
[369603341,1751640643494,-2069.31,0.00016986,2]
[369603343,1751640643504,-460.0,0.00016986,2]
[369603345,1751640643513,-504.29,0.00016986,2]
[369603347,1751640643523,-460.0,0.00016986,2]
[369603349,1751640643532,-151.0,0.00016986,2]
[369603351,1751640643542,-460.0,0.00016986,2]
[369603353,1751640643555,-2336.09,0.00016986,2]
[369603355,1751640643565,-460.0,0.00016986,2]
[369603357,1751640643574,-151.0,0.00016986,2]
[369603359,1751640643583,-528.35,0.00016986,2]
[369603361,1751640643592,-460.0,0.00016986,2]
[369603363,1751640643601,-151.0,0.00016986,2]
[369603365,1751640643612,-460.0,0.00016986,2]
[369603367,1751640643622,-460.0,0.00016986,2]
[369603369,1751640643631,-460.0,0.00016986,2]
[369603371,1751640643641,-1265.40386093,0.00016986,2]
[369603388,1751640643788,-499.96,0.00016959,2]
[369603391,1751640643799,-0.04,0.00016986,2]
[369603393,1751640643812,-1920.55613907,0.00016986,2]
[369603395,1751640643822,-1109.69,0.00016986,2]
[369603397,1751640643831,-486.66,0.00016986,2]
[369603399,1751640643841,-460.0,0.00016986,2]
[369603401,1751640643851,-460.0,0.00016986,2]
[369603403,1751640643860,-460.0,0.00016986,2]
[369603405,1751640643869,-374.53001349,0.00016986,2]
[369603407,1751640643880,-85.46998651,0.00016986,2]
[369603409,1751640643890,-695.289758,0.00016986,2]
[369603411,1751640643899,-460.0,0.00016986,2]
[369603413,1751640643908,-460.0,0.00016986,2]
[369603415,1751640643918,-851.9,0.00016986,2]
[369603417,1751640643927,-1732.35,0.00016986,2]
[369603419,1751640643936,-695.289758,0.00016986,2]
[369603421,1751640643945,-460.0,0.00016986,2]
[369603423,1751640643954,-151.0,0.00016986,2]
[369603425,1751640643963,-2462.41,0.00016986,2]
[369603427,1751640643973,-1328.47,0.00016986,2]
[369603429,1751640643982,-460.0,0.00016986,2]
[369603431,1751640643991,-460.0,0.00016986,2]
[369603433,1751640644000,-460.0,0.00016986,2]
[369603435,1751640644009,-460.0,0.00016986,2]
[369603437,1751640644019,-2350.03,0.00016986,2]
[369603439,1751640644028,-151.0,0.00016986,2]
[369603441,1751640644038,-460.0,0.00016986,2]
[369603443,1751640644047,-460.0,0.00016986,2]
[369603445,1751640644058,-460.0,0.00016986,2]
[369603447,1751640644067,-460.0,0.00016986,2]
[369603449,1751640644077,-1095.01,0.00016986,2]
[369603451,1751640644086,-460.0,0.00016986,2]
[369603453,1751640644096,-992.0,0.00016986,2]
[369603455,1751640644115,-460.0,0.00016986,2]
[369603457,1751640644125,-1140.44,0.00016986,2]
[369603459,1751640644134,-460.0,0.00016986,2]
[369603461,1751640644143,-941.59,0.00016986,2]
[369603463,1751640644152,-460.0,0.00016986,2]
[369603465,1751640644161,-1431.76,0.00016986,2]
[369603467,1751640644170,-2898.45,0.00016986,2]
[369603469,1751640644180,-460.0,0.00016986,2]
[369603471,1751640644190,-460.0,0.00016986,2]
[369603473,1751640644199,-460.0,0.00016986,2]
[369603475,1751640644209,-460.0,0.00016986,2]
[369603477,1751640644218,-460.0,0.00016986,2]
[369603479,1751640644227,-460.0,0.00016986,2]
[369603481,1751640644237,-460.0,0.00016986,2]
[369603483,1751640644246,-460.0,0.00016986,2]
[369603485,1751640644257,-460.0,0.00016986,2]
[369603487,1751640644266,-460.0,0.00016986,2]
[369603489,1751640644276,-460.0,0.00016986,2]
[369603491,1751640644285,-481.72,0.00016986,2]
[369603493,1751640644295,-3672.38,0.00016986,2]
[369603495,1751640644305,-460.0,0.00016986,2]
[369603497,1751640644315,-460.0,0.00016986,2]
[369603499,1751640644325,-460.0,0.00016986,2]
[369603501,1751640644335,-460.0,0.00016986,2]
[369603503,1751640644344,-764.38,0.00016986,2]
[369603505,1751640644353,-460.0,0.00016986,2]
[369603507,1751640644362,-1198.98,0.00016986,2]
[369603509,1751640644372,-460.0,0.00016986,2]
[369603511,1751640644381,-151.0,0.00016986,2]
[369603512,1751640644391,-403.78,0.00016986,2]
[369603527,1751640644521,-984.93,0.00017,2]
[369603529,1751640644531,-151.0,0.00017,2]
[369603531,1751640644540,-250.0,0.00017003,2]
[369603533,1751640644549,-3255.2,0.00017073,2]
[369603535,1751640644560,-1384.54,0.00017073,2]
[369603537,1751640644570,-1384.54,0.00017073,2]
[369603539,1751640644579,-245.851277,0.00017074,2]
[369603541,1751640644589,-245.851277,0.00017074,2]
[369603543,1751640644599,-151.0,0.00017074,2]
[369603545,1751640644609,-151.0,0.00017074,2]
[369603547,1751640644618,-5000.0,0.00017074,2]
[369603549,1751640644627,-25000.0,0.00017074,2]
[369603551,1751640644637,-250.0,0.00017081,2]
[369603553,1751640644646,-250.0,0.00017159,2]
[369603555,1751640644656,-1042.08295042,0.0001716,2]
[369603557,1751640644666,-3255.2,0.00017175,2]
[369603559,1751640644675,-7807.73192747,0.00017176,2]
[369603561,1751640644684,-250.0,0.00017236,2]
[369603563,1751640644694,-1384.54,0.00017247,2]
[369603565,1751640644703,-1384.54,0.00017247,2]
[369603567,1751640644712,-1384.54,0.00017247,2]
[369603569,1751640644722,-1384.54,0.00017247,2]
[369603571,1751640644732,-1384.61,0.00017247,2]
[369603573,1751640644741,-3255.2,0.00017259,2]
[369603575,1751640644751,-3255.2,0.00017259,2]
[369603577,1751640644761,-151.0,0.00017259,2]
[369603579,1751640644771,-151.0,0.00017259,2]
[369603581,1751640644782,-151.0,0.00017259,2]
[369603583,1751640644791,-151.0,0.00017259,2]
[369603585,1751640644800,-151.0,0.00017259,2]
[369603587,1751640644810,-151.0,0.0001726,2]
[369603589,1751640644820,-155.737143,0.0001726,2]
[369603591,1751640644830,-155.737143,0.0001726,2]
[369603593,1751640644839,-151.0,0.0001726,2]
[369603595,1751640644849,-151.0,0.0001726,2]
[369603597,1751640644859,-460.0,0.0001726,2]
[369603599,1751640644868,-460.0,0.0001726,2]
[369603601,1751640644877,-460.0,0.0001726,2]
[369603603,1751640644887,-460.0,0.0001726,2]
[369603605,1751640644897,-460.0,0.0001726,2]
[369603607,1751640644906,-460.0,0.0001726,2]
[369603609,1751640644916,-461.23,0.0001726,2]
[369603611,1751640644925,-460.0,0.0001726,2]
[369603613,1751640644934,-191.092026,0.0001726,2]
[369603615,1751640644943,-191.092026,0.0001726,2]
[369603617,1751640644953,-460.0,0.0001726,2]
[369603619,1751640644962,-151.0,0.0001726,2]
[369603621,1751640644972,-847.73,0.0001726,2]
[369603623,1751640644982,-151.0,0.0001726,2]
[369603625,1751640644991,-189.184172,0.0001726,2]
[369603627,1751640645001,-460.0,0.0001726,2]
[369603629,1751640645011,-517.88,0.0001726,2]
[369603631,1751640645020,-460.0,0.0001726,2]
[369603633,1751640645029,-268.410571,0.0001726,2]
[369603635,1751640645039,-268.410571,0.0001726,2]
[369603637,1751640645048,-460.0,0.0001726,2]
[369603639,1751640645058,-460.0,0.0001726,2]
[369603641,1751640645067,-386.258405,0.0001726,2]
[369603643,1751640645077,-386.258405,0.0001726,2]
[369603645,1751640645087,-460.0,0.0001726,2]
[369603647,1751640645096,-460.0,0.0001726,2]
[369603649,1751640645106,-826.84,0.0001726,2]
[369603651,1751640645117,-1197.41,0.0001726,2]
[369603653,1751640645127,-460.0,0.0001726,2]
[369603655,1751640645136,-1910.38,0.0001726,2]
[369603657,1751640645146,-151.0,0.0001726,2]
[369603659,1751640645155,-2069.31,0.0001726,2]
[369603661,1751640645164,-460.0,0.0001726,2]
[369603663,1751640645173,-504.29,0.0001726,2]
[369603665,1751640645183,-460.0,0.0001726,2]
[369603666,1751640645192,-151.0,0.0001726,2]
[369603669,1751640645202,-460.0,0.0001726,2]
[369603671,1751640645211,-460.0,0.0001726,2]
[369603672,1751640645220,-151.0,0.0001726,2]
[369603674,1751640645230,-2336.09,0.0001726,2]
[369603676,1751640645239,-528.35,0.0001726,2]
[369603678,1751640645249,-460.0,0.0001726,2]
[369603680,1751640645259,-151.0,0.0001726,2]
[369603682,1751640645269,-460.0,0.0001726,2]
[369603684,1751640645278,-460.0,0.0001726,2]
[369603686,1751640645287,-3186.0,0.0001726,2]
[369603688,1751640645296,-1109.69,0.0001726,2]
[369603690,1751640645306,-486.66,0.0001726,2]
[369603692,1751640645315,-460.0,0.0001726,2]
[369603694,1751640645324,-460.0,0.0001726,2]
[369603696,1751640645333,-460.0,0.0001726,2]
[369603698,1751640645342,-466.7751742,0.0001726,2]
[369603700,1751640645351,-460.0,0.0001726,2]
[369603702,1751640645361,-695.289758,0.0001726,2]
[369603703,1751640645370,-460.0,0.0001726,2]
[369603705,1751640645379,-851.9,0.0001726,2]
[369603707,1751640645389,-1732.35,0.0001726,2]
[369603709,1751640645398,-695.289758,0.0001726,2]
[369603711,1751640645408,-460.0,0.0001726,2]
[369603713,1751640645418,-151.0,0.0001726,2]
[369603715,1751640645428,-2462.41,0.0001726,2]
[369603717,1751640645437,-1328.47,0.0001726,2]
[369603719,1751640645447,-460.0,0.0001726,2]
[369603721,1751640645456,-460.0,0.0001726,2]
[369603723,1751640645466,-460.0,0.0001726,2]
[369603725,1751640645476,-460.0,0.0001726,2]
[369603727,1751640645485,-2350.03,0.0001726,2]
[369603729,1751640645495,-460.0,0.0001726,2]
[369603731,1751640645504,-460.0,0.0001726,2]
[369603732,1751640645514,-460.0,0.0001726,2]
[369603734,1751640645524,-1095.01,0.0001726,2]
[369603736,1751640645534,-460.0,0.0001726,2]
[369603738,1751640645543,-460.0,0.0001726,2]
[369603740,1751640645554,-992.0,0.0001726,2]
[369603742,1751640645565,-460.0,0.0001726,2]
[369603744,1751640645575,-1140.44,0.0001726,2]
[369603746,1751640645587,-572.32,0.0001726,2]
[369603748,1751640645596,-941.59,0.0001726,2]
[369603750,1751640645605,-460.0,0.0001726,2]
[369603752,1751640645614,-1431.76,0.0001726,2]
[369603754,1751640645624,-2898.45,0.0001726,2]